bitfinex-derivatives/quotes_BNBF0:USTF0_20250807
["timestamp","ask_amount","ask_price","bid_price","bid_amount"]
[1754535353196,0.87218006,768.11,767.45,0.754]
[1754535353899,0.87218006,768.12,767.45,0.754]
[1754535354298,0.87218006,768.11,767.45,0.754]
[1754535354498,0.87218006,768.12,767.45,0.754]
[1754535357500,0.87218006,768.13,767.45,0.754]
[1754535358001,0.87218006,768.13,767.35,0.87699635]
[1754535358199,0.87218006,768.12,767.36,0.87699635]
[1754535359304,0.87218006,768.1,767.38,0.87699635]
[1754535361205,0.87218006,768.1,767.39,1.006]
[1754535363413,0.87218006,768.11,767.39,1.006]
[1754535364009,0.87218006,768.09,767.39,1.006]
[1754535364410,0.87218006,768.08,767.39,1.006]
[1754535365716,0.87218006,768.07,767.39,1.006]
[1754535366216,0.87218006,768.08,767.39,1.006]
[1754535366617,0.87218006,768.07,767.39,1.006]
[1754535367416,0.87218006,768.09,767.39,1.88299635]
[1754535371420,0.87218006,768.08,767.4,0.87699635]
[1754535373418,0.87218006,768.07,767.4,0.87699635]
[1754535373719,0.87218006,768.07,767.41,0.87699635]
[1754535374319,0.87218006,768.05,767.42,0.87699635]
[1754535375620,0.87218006,768.04,767.42,0.87699635]
[1754535380231,0.87218006,768.04,767.43,0.87699635]
[1754535381329,0.87218006,768.03,767.43,0.87699635]
[1754535382127,0.87218006,768.03,767.44,0.87699635]
[1754535383232,0.87218006,768.02,767.44,0.87699635]
[1754535383628,0.87218006,768.15,767.42,0.87699635]
[1754535383829,0.22662004,768.16,767.48,0.87699635]
[1754535384330,0.87218006,768.21,767.49,0.87699635]
[1754535385234,0.87218006,768.2,767.49,0.87699635]
[1754535387231,0.87218006,768.2,767.5,0.87699635]
[1754535387437,0.87218006,768.21,767.51,0.87699635]
[1754535389339,0.87218006,768.2,767.52,0.87699635]
[1754535390840,0.2265861,768.28,767.39,1.006]
[1754535390841,0.87218006,768.21,767.51,0.87699635]
[1754535391439,0.87218006,768.21,767.52,0.87699635]
[1754535393541,0.87218006,768.16,767.55,0.87699635]
[1754535395447,0.87218006,768.14,767.56,0.87699635]
[1754535396147,0.87218006,768.15,767.56,0.87699635]
[1754535396744,0.87218006,768.16,767.55,0.87699635]
[1754535397145,0.87218006,768.2,767.57,0.87699635]
[1754535399151,0.87218006,768.21,767.57,0.87699635]
[1754535400151,0.87218006,768.21,767.56,0.87699635]
[1754535400752,0.2265861,768.28,767.58,0.87699635]
[1754535400753,0.87218006,768.19,767.58,0.87699635]
[1754535401153,0.87218006,768.19,767.57,0.87699635]
[1754535402351,0.87218006,768.2,767.57,0.87699635]
[1754535404051,0.87218006,768.2,767.56,0.87699635]
[1754535405858,0.87218006,768.21,767.57,0.775]
[1754535406654,0.87218006,768.2,767.57,1.65199635]
[1754535408159,0.87218006,768.2,767.57,0.775]
[1754535411269,0.87218006,768.2,767.57,1.65199635]
[1754535412165,0.87218006,768.19,767.57,1.65199635]
[1754535415566,0.87218006,768.27,767.57,0.775]
[1754535415968,0.87218006,768.26,767.57,0.775]
[1754535423182,0.87218006,768.25,767.57,0.775]
[1754535425477,0.87218006,768.17,767.58,0.87699635]
[1754535428173,0.87218006,768.17,767.59,0.87699635]
[1754535428471,0.87218006,768.19,767.57,1.65199635]
[1754535430873,0.87218006,768.19,767.57,0.775]
[1754535431078,0.87017479,768.19,767.57,1.65217283]
[1754535431275,0.87017479,768.19,767.58,0.87717283]
[1754535431578,0.87017479,768.18,767.58,0.87717283]
[1754535431878,0.87017479,768.2,767.57,1.65217283]
[1754535432481,0.87017479,768.19,767.57,1.65217283]
[1754535434083,0.87017479,768.19,767.58,0.87717283]
[1754535435184,0.87017479,768.18,767.58,0.87717283]
[1754535436185,0.87017479,768.18,767.59,0.87717283]
[1754535437085,0.87017479,768.17,767.59,0.87717283]
[1754535439080,0.87017479,768.17,767.6,0.87717283]
[1754535440182,0.87017479,768.16,767.6,0.87717283]
[1754535441085,0.87017479,768.15,767.61,0.87717283]
[1754535441784,0.87017479,768.14,767.62,0.87717283]
[1754535442182,0.87017479,768.13,767.63,0.87717283]
[1754535443281,0.2265861,768.28,767.57,0.775]
[1754535443282,0.87017479,768.12,767.64,0.87717283]
[1754535444686,0.87017479,768.11,767.65,0.87717283]
[1754535445187,0.87017479,768.12,767.64,0.87717283]
[1754535446087,0.87017479,768.15,767.62,0.87717283]
[1754535446487,0.87017479,768.17,767.61,0.87717283]
[1754535447084,0.87017479,768.16,767.61,0.87717283]
[1754535448183,0.87017479,768.16,767.62,0.87717283]
[1754535450289,0.87017479,768.2,767.59,0.87717283]
[1754535451793,0.87017479,768.21,767.6,0.87717283]
[1754535452186,0.87017479,768.2,767.6,0.87717283]
[1754535452393,0.87017479,768.21,767.6,0.87717283]
[1754535453191,0.87017479,768.2,767.6,0.87717283]
[1754535455092,0.87017479,768.23,767.58,0.87717283]
[1754535455991,0.87017479,768.23,767.57,0.775]
[1754535455992,0.87017479,768.22,767.59,0.87717283]
[1754535456393,0.87017479,768.21,767.59,0.87717283]
[1754535457192,0.87017479,768.21,767.6,0.87717283]
[1754535458195,0.2265861,768.28,767.57,0.775]
[1754535458391,0.87204807,768.21,767.6,0.87909048]
[1754535458695,0.87204807,768.23,767.59,0.87909048]
[1754535460197,0.87204807,768.21,767.6,0.87909048]
[1754535460998,0.87204807,768.26,767.64,0.87909048]
[1754535461492,0.87204807,768.28,767.65,0.87909048]
[1754535463199,0.87204807,768.29,767.65,0.87909048]
[1754535463697,0.87204807,768.29,767.64,0.87909048]
[1754535464501,0.87204807,768.3,767.64,0.87909048]
[1754535465001,0.87204807,768.27,767.66,0.87909048]
[1754535465900,0.87204807,768.29,767.67,0.87909048]
[1754535467306,0.87204807,768.29,767.68,0.936]
[1754535467509,0.87204807,768.3,767.68,0.936]
[1754535468305,0.87204807,768.26,767.69,0.87909048]
[1754535468609,0.87204807,768.24,767.7,0.87909048]
[1754535470312,0.22656693,768.35,767.69,0.87909048]
[1754535470313,0.87204807,768.25,767.69,0.87909048]
[1754535472211,0.87204807,768.26,767.69,0.87909048]
[1754535472912,0.87204807,768.24,767.71,0.87909048]
[1754535473113,0.87204807,768.44,767.78,0.87909048]
[1754535473413,0.87204807,768.45,767.77,0.87909048]
[1754535473613,0.87204807,768.46,767.77,0.87909048]
[1754535473913,0.87204807,768.51,767.74,0.87909048]
[1754535474409,1.0985796,768.52,767.73,0.87909048]
[1754535475513,0.22653153,768.52,767.72,0.87909048]
[1754535477416,0.22653153,768.52,767.71,0.87909048]
[1754535478112,0.22653153,768.52,767.7,0.87909048]
[1754535478412,0.22653153,768.52,767.69,0.87909048]
[1754535478816,0.22653153,768.52,767.7,0.87909048]
[1754535481417,0.22653153,768.52,767.69,0.87909048]
[1754535482815,0.22653153,768.52,767.7,0.87909048]
[1754535483219,0.22653153,768.52,767.69,0.87909048]
[1754535483722,0.22653153,768.52,767.72,0.87909048]
[1754535484217,0.22653153,768.52,767.71,0.87909048]
[1754535486317,0.22653153,768.52,767.72,0.751]
[1754535487924,0.22653153,768.52,767.73,0.87909048]
[1754535491024,0.22653153,768.52,767.72,1.63009048]
[1754535491325,0.22653153,768.52,767.72,0.751]
[1754535494723,0.22653153,768.52,767.72,1.63009048]
[1754535496727,0.22653153,768.52,767.73,0.87909048]
[1754535497529,0.22653153,768.52,767.74,0.87909048]
[1754535500929,0.87204807,768.51,767.76,0.87909048]
[1754535501730,0.87204807,768.5,767.76,0.87909048]
[1754535502630,0.87204807,768.51,767.76,0.87909048]
[1754535504135,0.87204807,768.5,767.77,0.87909048]
[1754535507132,0.87204807,768.51,767.77,0.87909048]
[1754535507438,0.87204807,768.49,767.77,0.87909048]
[1754535508038,0.87204807,768.49,767.78,0.87909048]
[1754535509340,0.87204807,768.48,767.78,0.87909048]
[1754535510836,0.87204807,768.49,767.78,0.87909048]
[1754535511440,0.87204807,768.48,767.78,0.87909048]
[1754535512638,0.87204807,768.48,767.79,0.87909048]
[1754535513739,0.87204807,768.47,767.79,0.87909048]
[1754535514440,0.87204807,768.47,767.8,0.87909048]
[1754535514838,0.22653153,768.52,767.72,0.751]
[1754535517342,0.87204807,768.49,767.72,0.751]
[1754535517539,0.87204807,768.48,767.72,0.751]
[1754535518441,0.87204807,768.47,767.72,0.751]
[1754535519448,0.87204807,768.44,767.72,0.751]
[1754535519644,0.87204807,768.39,767.72,0.751]
[1754535520247,0.87204807,768.36,767.72,0.751]
[1754535521048,0.87204807,768.31,767.72,0.751]
[1754535524456,0.87204807,768.32,767.72,0.751]
[1754535525152,0.87204807,768.35,767.72,0.751]
[1754535526455,0.87204807,768.35,767.65,0.87909048]
[1754535527461,0.87204807,768.34,767.65,0.87909048]
[1754535529361,0.87204807,768.33,767.66,0.87909048]
[1754535530065,0.87204807,768.33,767.67,0.812]
[1754535530364,0.87204807,768.32,767.67,0.812]
[1754535530865,0.87204807,768.32,767.67,1.69109048]
[1754535531062,0.87204807,768.32,767.67,0.812]
[1754535531965,0.87204807,768.32,767.67,1.69109048]
[1754535532163,0.87204807,768.32,767.67,0.812]
[1754535532464,0.87204807,768.32,767.67,1.69109048]
[1754535533362,0.87204807,768.32,767.67,0.812]
[1754535534364,0.87204807,768.29,767.69,0.87909048]
[1754535535168,0.87204807,768.29,767.68,0.87909048]
[1754535535468,0.87204807,768.3,767.68,0.87909048]
[1754535538467,0.87204807,768.31,767.67,1.69109048]
[1754535540867,0.87204807,768.3,767.68,0.87909048]
[1754535541267,0.87204807,768.31,767.7,0.87909048]
[1754535541471,0.87204807,768.35,767.74,0.87909048]
[1754535542371,0.87204807,768.35,767.73,0.87909048]
[1754535542670,0.87204807,768.35,767.74,0.87909048]
[1754535543268,0.87204807,768.35,767.73,0.87909048]
[1754535543973,0.87204807,768.35,767.74,0.87909048]
[1754535544470,0.87204807,768.34,767.74,0.87909048]
[1754535544969,0.87204807,768.35,767.74,0.87909048]
[1754535546173,0.87204807,768.34,767.74,0.87909048]
[1754535548673,0.87204807,768.35,767.73,0.87909048]
[1754535550369,0.87204807,768.35,767.74,0.87909048]
[1754535553074,0.87204807,768.34,767.74,0.87909048]
[1754535554974,0.87204807,768.35,767.74,0.87909048]
[1754535555496,0.87204807,768.34,767.74,0.87909048]
[1754535555879,0.87204807,768.38,767.72,0.87909048]
[1754535556375,0.87204807,768.37,767.72,0.87909048]
[1754535556980,0.87204807,768.38,767.72,0.87909048]
[1754535557381,0.87204807,768.37,767.72,0.87909048]
[1754535558582,0.87204807,768.36,767.73,0.87909048]
[1754535562686,0.87204807,768.36,767.74,0.87909048]
[1754535563789,0.87204807,768.36,767.73,0.87909048]
[1754535565185,0.87204807,768.37,767.73,0.87909048]
[1754535565489,0.87204807,768.36,767.73,0.87909048]
[1754535565688,0.87204807,768.34,767.75,0.87909048]
[1754535566791,0.87204807,768.35,767.74,0.87909048]
[1754535567386,0.87204807,768.35,767.75,2.00109048]
[1754535567688,0.87204807,768.35,767.75,1.122]
[1754535569489,0.87204807,768.35,767.75,2.00109048]
[1754535570493,0.87204807,768.34,767.75,2.00109048]
[1754535570991,0.87204807,768.35,767.75,2.00109048]
[1754535571195,0.87204807,768.34,767.75,2.00109048]
[1754535572192,0.87204807,768.35,767.75,2.00109048]
[1754535573097,0.87204807,768.35,767.76,0.87909048]
[1754535573595,0.87204807,768.34,767.76,0.87909048]
[1754535574195,0.87204807,768.33,767.77,0.87909048]
[1754535575198,0.87204807,768.32,767.77,0.87909048]
[1754535576700,0.87204807,768.31,767.78,0.87909048]
[1754535577504,0.87204807,768.3,767.79,0.87909048]
[1754535577903,0.87204807,768.31,767.78,0.87909048]
[1754535582111,1.157922,768.46,767.75,1.122]
[1754535582112,0.87204807,768.3,767.79,0.87909048]
[1754535582513,0.87204807,768.31,767.79,0.87909048]
[1754535583212,0.87204807,768.3,767.79,0.87909048]
[1754535583414,0.87204807,768.32,767.78,0.87909048]
[1754535584210,0.87204807,768.31,767.79,0.87909048]
[1754535584413,0.87204807,768.31,767.78,0.87909048]
[1754535585215,0.87204807,768.31,767.79,0.87909048]
[1754535585416,0.87204807,768.31,767.78,0.87909048]
[1754535586515,0.87204807,768.3,767.79,0.87909048]
[1754535589218,0.87204807,768.29,767.79,0.87909048]
[1754535589414,0.87204807,768.29,767.8,0.87909048]
[1754535589615,0.87204807,768.34,767.76,0.87909048]
[1754535590116,0.87204807,768.34,767.77,0.87909048]
[1754535591821,0.87204807,768.36,767.75,2.00109048]
[1754535593318,0.87204807,768.35,767.76,0.87909048]
[1754535596124,0.87204807,768.34,767.77,0.87909048]
[1754535599124,0.87204807,768.33,767.78,0.87909048]
[1754535599523,0.87204807,768.3,767.8,0.87909048]
[1754535601724,0.87204807,768.24,767.84,0.87909048]
[1754535602629,0.87204807,768.23,767.84,0.87909048]
[1754535602929,0.87204807,768.24,767.84,0.87909048]
[1754535603125,0.87204807,768.26,767.83,0.87909048]
[1754535606429,0.87204807,768.25,767.83,0.87909048]
[1754535607630,0.87204807,768.27,767.82,0.87909048]
[1754535607825,0.87204807,768.27,767.81,0.87909048]
[1754535608129,0.87204807,768.28,767.82,0.87909048]
[1754535608428,0.87204807,768.26,767.82,1.025]
[1754535608825,0.87204807,768.27,767.82,1.025]
[1754535610927,0.87204807,768.28,767.82,1.025]
[1754535615127,0.87204807,768.26,767.82,1.025]
[1754535616429,0.87204807,768.25,767.82,1.025]
[1754535618136,0.87204807,768.26,767.82,1.025]
[1754535620338,0.87204807,768.2,767.82,1.025]
[1754535622233,0.87204807,768.21,767.82,1.025]
[1754535623036,0.87204807,768.19,767.82,1.025]
[1754535623241,0.87204807,768.2,767.82,1.025]
[1754535626139,1.157922,768.34,767.82,1.025]
[1754535626140,0.87204807,768.22,767.82,1.025]
[1754535627137,0.87204807,768.23,767.82,1.025]
[1754535627437,1.157922,768.39,767.82,1.025]
[1754535627438,0.87204807,768.22,767.82,1.025]
[1754535630840,0.87204807,768.16,767.82,1.025]
[1754535631042,0.87204807,768.22,767.82,1.025]
[1754535631241,0.87204807,768.23,767.82,1.025]
[1754535631845,0.87204807,768.22,767.82,1.025]
[1754535632242,0.87204807,768.23,767.82,1.025]
[1754535632643,0.87204807,768.22,767.82,1.025]
[1754535633650,0.87204807,768.11,767.82,1.025]
[1754535634149,0.87204807,768.12,767.82,1.025]
[1754535634745,0.87204807,768.13,767.82,1.025]
[1754535635151,0.87204807,768.14,767.82,1.025]
[1754535635652,0.87204807,768.15,767.82,1.025]
[1754535636553,0.87204807,768.16,767.82,1.025]
[1754535639353,0.87204807,768.17,767.82,1.025]
[1754535643156,0.87204807,768.18,767.82,1.025]
[1754535644558,0.87204807,768.17,767.82,1.025]
[1754535644758,0.87204807,768.16,767.82,1.025]
[1754535645057,0.87204807,768.15,767.82,1.025]
[1754535645461,0.87204807,768.16,767.82,1.025]
[1754535651667,0.87204807,768.19,767.82,1.025]
[1754535653865,0.87204807,768.21,767.82,1.025]
[1754535655172,0.87204807,768.31,767.82,1.025]
[1754535655972,0.87204807,768.37,767.82,1.025]
[1754535660477,0.87204807,768.41,767.82,1.025]
[1754535660977,0.87204807,768.4,767.82,1.025]
[1754535661177,0.87204807,768.39,767.82,1.025]
[1754535661378,0.87204807,768.35,767.82,1.025]
[1754535661978,0.87204807,768.32,767.82,1.025]
[1754535662479,0.87204807,768.32,767.44,0.87909048]
[1754535665075,0.87204807,768.32,767.45,1.98409048]
[1754535665279,0.87204807,768.31,767.45,1.98409048]
[1754535667277,0.87204807,768.32,767.45,1.98409048]
[1754535668381,0.87204807,768.34,767.45,1.105]
[1754535668680,0.87204807,768.33,767.45,1.105]
[1754535670282,0.87204807,768.28,767.48,0.87909048]
[1754535670982,0.87204807,768.29,767.49,0.87909048]
[1754535671182,0.87204807,768.28,767.49,0.87909048]
[1754535671483,0.87204807,768.32,767.54,0.87909048]
[1754535672284,0.87204807,768.31,767.55,0.87909048]
[1754535672779,0.87204807,768.32,767.54,0.87909048]
[1754535673079,0.87204807,768.34,767.53,0.87909048]
[1754535673284,0.87204807,768.33,767.54,0.87909048]
[1754535674584,0.87204807,768.34,767.53,0.87909048]
[1754535675279,0.87204807,768.34,767.54,0.87909048]
[1754535676180,0.87204807,768.33,767.54,0.87909048]
[1754535676880,0.87204807,768.35,767.56,0.87909048]
[1754535677084,0.87204807,768.35,767.57,0.87909048]
[1754535677385,0.87204807,768.34,767.57,0.87909048]
[1754535677981,0.87204807,768.32,767.59,0.87909048]
[1754535678285,0.87204807,768.32,767.45,1.105]
[1754535678286,0.87204807,768.33,767.58,0.87909048]
[1754535679186,0.87204807,768.32,767.59,0.87909048]
[1754535679384,0.87204807,768.34,767.6,0.87909048]
[1754535680185,0.87204807,768.33,767.61,0.87909048]
[1754535682587,0.87204807,768.33,767.62,0.87909048]
[1754535682889,0.87204807,768.31,767.63,0.87909048]
[1754535683285,0.87204807,768.31,767.64,0.957]
[1754535683587,0.87204807,768.3,767.64,0.957]
[1754535683785,0.87204807,768.31,767.64,0.957]
[1754535684289,0.87204807,768.3,767.64,0.957]
[1754535684490,0.87204807,768.29,767.64,0.957]
[1754535687792,0.87204807,768.28,767.64,0.957]
[1754535688089,0.87204807,768.32,767.64,0.957]
[1754535688290,0.87204807,768.3,767.64,0.957]
[1754535689191,0.87204807,768.31,767.64,0.957]
[1754535689791,0.87204807,768.32,767.64,0.957]
[1754535693598,0.87204807,768.31,767.64,0.957]
[1754535693793,0.87204807,768.34,767.65,0.87909048]
[1754535694795,0.22656102,768.36,767.64,1.83609048]
[1754535696995,0.22656102,768.36,767.68,0.87909048]
[1754535698502,0.22656102,768.36,767.69,0.87909048]
[1754535698797,0.22656102,768.36,767.68,0.87909048]
[1754535699696,0.22656102,768.36,767.66,0.87909048]
[1754535700499,1.09860909,768.36,767.59,0.87909048]
[1754535701002,0.87204807,768.33,767.61,0.87909048]
[1754535701499,0.87204807,768.3,767.63,0.87909048]
[1754535704205,0.87204807,768.3,767.64,1.147]
[1754535705205,0.87204807,768.32,767.64,1.147]
[1754535709209,0.87204807,768.31,767.64,1.147]
[1754535710404,0.87204807,768.29,767.65,0.87909048]
[1754535710806,0.87204807,768.28,767.65,0.87909048]
[1754535711708,0.87204807,768.3,767.64,2.02609048]
[1754535713212,0.87204807,768.29,767.64,2.02609048]
[1754535714011,0.87204807,768.29,767.65,0.87909048]
[1754535715114,0.87204807,768.27,767.66,0.87909048]
[1754535715412,0.87204807,768.26,767.66,0.87909048]
[1754535716912,0.87204807,768.27,767.66,0.87909048]
[1754535720111,0.87204807,768.28,767.66,0.87909048]
[1754535721015,0.87204807,768.28,767.65,0.87909048]
[1754535721515,0.87204807,768.26,767.67,0.87909048]
[1754535722222,0.87204807,768.25,767.67,0.87909048]
[1754535722718,1.09860909,768.36,767.64,1.147]
[1754535722925,0.87204807,768.35,767.64,1.147]
[1754535723320,0.87204807,768.34,767.64,1.147]
[1754535727130,0.87204807,768.45,767.66,0.87909048]
[1754535727328,0.87204807,768.46,767.66,0.87909048]
[1754535727527,0.87204807,768.47,767.68,0.87909048]
[1754535728326,0.87204807,768.48,767.69,0.87909048]
[1754535729432,0.87204807,768.41,767.7,0.87909048]
[1754535731229,0.87204807,768.4,767.71,0.87909048]
[1754535732533,0.87204807,768.4,767.72,0.87909048]
[1754535733129,0.87204807,768.4,767.71,0.87909048]
[1754535736538,0.87204807,768.4,767.72,0.87909048]
[1754535736935,0.87204807,768.31,767.78,0.87909048]
[1754535737242,0.87204807,768.3,767.78,0.87909048]
[1754535738842,0.87204807,768.29,767.79,0.87909048]
[1754535741242,0.87204807,768.31,767.8,0.87909048]
[1754535744048,0.87204807,768.32,767.8,0.87909048]
[1754535744246,0.87204807,768.32,767.79,0.87909048]
[1754535746748,0.87204807,768.33,767.78,0.87909048]
[1754535748951,0.87204807,768.35,767.78,0.87909048]
[1754535749445,0.87204807,768.33,767.77,0.87909048]
[1754535750349,0.87204807,768.34,767.77,0.87909048]
[1754535750848,0.87204807,768.33,767.77,0.87909048]
[1754535751545,0.87204807,768.41,767.77,0.87909048]
[1754535754749,0.87204807,768.4,767.74,0.87909048]
[1754535757050,0.22653227,768.5,767.77,0.87909048]
[1754535757051,0.87204807,768.43,767.77,0.87909048]
[1754535757348,0.87204807,768.48,767.81,0.87909048]
[1754535758453,0.87204807,768.49,767.8,0.87909048]
[1754535760152,0.87204807,768.49,767.79,0.87909048]
[1754535760350,1.09858034,768.5,767.79,0.87909048]
[1754535760555,1.09858034,768.5,767.8,0.87909048]
[1754535761154,1.09858034,768.5,767.79,0.87909048]
[1754535761455,0.87204807,768.48,767.81,0.87909048]
[1754535763958,0.87204807,768.48,767.82,1.111]
[1754535764554,0.22653227,768.5,767.82,1.111]
[1754535764555,0.87204807,768.47,767.82,1.99009048]
[1754535766155,0.87204807,768.47,767.82,1.111]
[1754535766861,0.87204807,768.46,767.82,1.99009048]
[1754535768259,0.87204807,768.42,767.85,0.87909048]
[1754535768660,0.87204807,768.44,767.84,0.87909048]
[1754535769163,0.87204807,768.44,767.82,1.111]
[1754535769164,0.87204807,768.43,767.85,0.87909048]
[1754535769661,0.22653227,768.5,767.82,1.111]
[1754535769865,0.22653227,768.5,767.82,1.99009048]
[1754535770665,0.22653227,768.5,767.82,1.111]
[1754535775964,0.87204807,768.58,767.82,1.111]
[1754535776667,0.87204807,768.57,767.82,1.111]
[1754535776867,0.87204807,768.58,767.82,1.111]
[1754535777068,0.22648361,768.62,767.82,1.111]
[1754535777261,0.22648361,768.62,767.83,0.87909048]
[1754535777567,0.22648361,768.62,767.85,0.87909048]
[1754535778365,0.22648361,768.62,767.86,0.87909048]
[1754535778770,0.87204807,768.66,767.86,0.87909048]
[1754535781672,0.87204807,768.69,767.84,0.87909048]
[1754535783172,0.87204807,768.68,767.85,0.87909048]
[1754535783370,0.87204807,768.69,767.84,0.87909048]
[1754535784075,0.87204807,768.68,767.85,0.87909048]
[1754535784574,0.87204807,768.69,767.85,0.87909048]
[1754535785177,0.87204807,768.68,767.85,0.87909048]
[1754535785383,0.87204807,768.69,767.84,0.87909048]
[1754535786084,0.87204807,768.69,767.85,0.87909048]
[1754535786281,0.87204807,768.68,767.85,0.87909048]
[1754535786582,0.87204807,768.69,767.84,0.87909048]
[1754535786887,0.22646077,768.72,767.87,0.87909048]
[1754535786888,0.87204807,768.65,767.87,0.87909048]
[1754535789184,0.87204807,768.66,767.87,0.87909048]
[1754535789380,0.87204807,768.66,767.86,0.87909048]
[1754535789884,0.87204807,768.65,767.87,0.87909048]
[1754535790481,0.87204807,768.66,767.86,0.87909048]
[1754535791486,0.87204807,768.61,767.89,0.87909048]
[1754535792384,0.87204807,768.62,767.89,0.87909048]
[1754535795089,0.87204807,768.6,767.9,0.87909048]
[1754535796286,0.87204807,768.58,767.92,0.87909048]
[1754535796888,0.87204807,768.62,767.89,0.87909048]
[1754535797688,0.87204807,768.63,767.9,0.87909048]
[1754535799990,0.87204807,768.61,767.92,0.87909048]
[1754535800494,0.87204807,768.65,767.89,0.87909048]
[1754535803897,0.87204807,768.65,767.9,0.836]
[1754535804294,0.87204807,768.61,767.9,0.836]
[1754535804698,0.87204807,768.62,767.9,0.836]
[1754535805198,0.87204807,768.61,767.9,0.836]
[1754535806797,0.87204807,768.6,767.9,0.836]
[1754535808301,0.87204807,768.61,767.9,0.836]
[1754535809198,0.87204807,768.62,767.9,0.836]
[1754535810096,0.22646077,768.72,767.9,0.836]
[1754535810097,0.87204807,768.61,767.9,0.836]
[1754535810301,0.87204807,768.59,767.9,0.836]
[1754535813197,0.87204807,768.58,767.9,0.836]
[1754535813699,0.87204807,768.58,767.9,1.71509048]
[1754535814500,0.87204807,768.57,767.9,1.71509048]
[1754535815199,0.87204807,768.57,767.91,0.87909048]
[1754535816104,0.87204807,768.56,767.91,0.87909048]
[1754535817100,0.87204807,768.56,767.92,0.87909048]
[1754535817599,0.87204807,768.55,767.92,0.87909048]
[1754535818005,0.87204807,768.53,767.94,0.87909048]
[1754535818204,0.87204807,768.53,767.93,0.87909048]
[1754535818705,0.87204807,768.47,767.9,0.836]
[1754535818905,0.87204807,768.45,767.9,0.836]
[1754535819106,0.87204807,768.31,767.9,0.836]
[1754535819402,0.87204807,768.33,767.9,0.836]
[1754535820000,0.87204807,768.32,767.9,0.836]
[1754535820402,0.87204807,768.33,767.9,0.836]
[1754535821301,0.87204807,768.35,767.9,0.836]
[1754535821503,0.87204807,768.36,767.9,0.836]
[1754535822409,0.87204807,768.37,767.9,0.836]
[1754535823406,0.87204807,768.38,767.9,0.836]
[1754535824205,0.87204807,768.37,767.9,0.836]
[1754535824605,0.87204807,768.38,767.9,0.836]
[1754535825507,0.87204807,768.39,767.9,0.836]
[1754535825707,0.87204807,768.38,767.9,0.836]
[1754535826412,0.87204807,768.39,767.9,0.836]
[1754535828113,0.87204807,768.4,767.9,0.836]
[1754535828915,0.87204807,768.38,767.9,0.836]
[1754535829516,0.87204807,768.39,767.9,0.836]
[1754535831114,0.87204807,768.34,767.9,0.836]
[1754535832117,0.87204807,768.35,767.9,0.836]
[1754535833320,0.87204807,768.37,767.9,0.836]
[1754535836419,0.87204807,768.38,767.9,0.836]
[1754535836923,0.87204807,768.39,767.9,0.836]
[1754535841824,0.87204807,768.4,767.9,0.836]
[1754535842326,0.87204807,768.41,767.9,0.836]
[1754535843225,0.87204807,768.4,767.9,0.836]
[1754535844927,0.87204807,768.41,767.9,0.836]
[1754535846725,0.87204807,768.4,767.9,0.836]
[1754535847333,0.87204807,768.36,767.9,0.836]
[1754535847632,0.87204807,768.37,767.9,0.836]
[1754535849129,0.87204807,768.36,767.9,0.836]
[1754535849434,0.87204807,768.37,767.9,0.836]
[1754535851637,0.87204807,768.35,767.9,0.836]
[1754535852239,0.87204807,768.34,767.9,0.836]
[1754535854138,0.87204807,768.33,767.56,0.87909048]
[1754535857439,0.87204807,768.33,767.57,0.87909048]
[1754535857742,0.87204807,768.33,767.58,1.041]
[1754535858842,0.87204807,768.32,767.58,1.041]
[1754535861541,0.87204807,768.31,767.58,1.92009048]
[1754535861844,0.87204807,768.32,767.58,1.041]
[1754535862540,0.87204807,768.31,767.58,1.92009048]
[1754535865545,0.87204807,768.3,767.59,0.87909048]
[1754535866749,0.87204807,768.29,767.59,0.87909048]
[1754535867148,0.87204807,768.29,767.6,0.87909048]
[1754535868945,0.87204807,768.53,767.58,1.041]
[1754535869148,0.87204807,768.6,767.58,1.041]
[1754535869349,0.87204807,768.62,767.58,1.041]
[1754535869848,0.87204807,768.65,767.58,1.92009048]
[1754535870246,0.87204807,768.65,767.59,0.87909048]
[1754535871551,0.87204807,768.64,767.6,0.87909048]
[1754535872052,0.87204807,768.64,767.58,1.041]
[1754535872053,0.87204807,768.66,767.62,0.87909048]
[1754535872249,0.87204807,768.67,767.63,0.87909048]
[1754535872454,0.87204807,768.67,767.64,0.87909048]
[1754535873155,0.87204807,768.67,767.63,0.87909048]
[1754535873449,0.87204807,768.66,767.64,0.87909048]
[1754535873655,0.87204807,768.63,767.66,0.87909048]
[1754535874351,0.87204807,768.62,767.67,0.87909048]
[1754535875457,0.87204807,768.61,767.68,0.87909048]
[1754535876256,0.87204807,768.62,767.68,0.87909048]
[1754535876457,0.87204807,768.61,767.68,0.87909048]